Cogmind - Beta 13 X1 @@@ ROGUE MODE // 2023.11.14 @ 16:17:31 Player: Torako Result: Destroyed by G-67 Veteran with Field Laser Performance ------------- Evolutions (5) 2500 Regions Visited (11) 2200 Robots Destroyed (145) 725 Value Destroyed (6144) 6144 Prototype IDs (50) 1000 Alien Tech Used (0) 0 Bonus (4934) 4934 TOTAL SCORE: 17503 Bonus ------- Follower Combat Kills 306 Aligned with FarCom 300 Met Warlord at Base 500 MAIN.C Attacked Warlord 500 Warlord Defense Kills 3718 Friendly Fire -390 Cogmind --------- Core Integrity 0/1000 Matter 300/300 Energy 99/100 System Corruption 7% Temperature Cool (0) Movement Core (50) Location -5/Warlord Parts ------- > --- POWER (3) -------- (None) > --- PROPULSION (5) --- (None) > --- UTILITY (6) ------ (None) > --- WEAPON (3) ------- (None) > --- INVENTORY (5) ---- Vortex Chain Reactor Peak State ------------ > --- POWER ------------ Neutrino Core Vortex Chain Reactor > --- PROPULSION ------- Improved Medium Treads Improved Medium Treads Improved Medium Treads Improved Medium Treads Improved Medium Treads > --- UTILITY ---------- Advanced Heat Sink Huge Storage Unit Advanced Targeting Computer Experimental Targeting Computer Core Analyzer Thermal Barrier > --- WEAPON ----------- Vortex Rifle Vortex Rifle Heavy Phase Cannon > --- INVENTORY -------- Micro Fission Core Improved Medium Treads Improved Medium Treads Wheel Power Amplifier High-capacity Storage Unit Superbattery High-capacity Matter Pod Advanced Sensor Array Signal Interpreter Advanced Targeting Computer Transmission Jammer EM Disruption Field Army-in-a-Box Long-range Proton Cannon Latent Energy Streamer Vortex Catalyst Activator Powered Hammer Power Sword [Rating: 116] Favorites ----------- Power Light Angular Momentum Engine Engine Light Angular Momentum Engine Power Core Neutrino Core Reactor Vortex Chain Reactor Propulsion Improved Medium Treads Treads Improved Medium Treads Leg Flexi-carbon Leg Wheel Compact Wheel Utility Huge Storage Unit Device Advanced Heat Sink Storage Huge Storage Unit Processor Advanced Targeting Computer Protection Improved Light Armor Plating Weapon Autogun Energy Gun Vortex Rifle Energy Cannon Heavy Phase Cannon Ballistic Gun Autogun Launcher Grenade Launcher Impact Weapon Powered Hammer Slashing Weapon Power Sword Build | -11 -10 -10 -10 -9 -8 -7 -6 -5 -5 -5 -5 ------- Run | Jun Mat Min Exi Min Mat Fac Fac Fac Upp Upp War Slots Evolved 10 | . . . . . 4 2 2 2 . . . Power 2 | . . . . . 1 . 1 . . . . Propulsion 3 | . . . . . 2 . . 1 . . . Utility 4 | . . . . . 1 2 1 . . . . Weapon 1 | . . . . . . . . 1 . . . Parts Attached 170 | 5 5 5 9 3 32 44 26 15 7 . 19 Power 25 | 1 1 1 2 . 4 5 7 2 . . 2 Engine 16 | 1 . 1 2 . 3 3 5 1 . . . Core 7 | . 1 . . . 1 2 1 1 . . 1 Reactor 2 | . . . . . . . 1 . . . 1 Propulsion 46 | 2 . . 3 1 12 11 5 7 . . 5 Treads 31 | 2 . . 3 . 8 5 2 7 . . 4 Leg 3 | . . . . . 1 1 1 . . . . Wheel 12 | . . . . 1 3 5 2 . . . 1 Hover . | . . . . . . . . . . . . Flight . | . . . . . . . . . . . . Utility 44 | . 2 3 . . 9 10 11 3 2 . 4 Device 16 | . . . . . 4 2 6 1 1 . 2 Storage 1 | . . 1 . . . . . . . . . Processor 8 | . 2 1 . . 1 . 3 . . . 1 Hackware . | . . . . . . . . . . . . Protection 19 | . . 1 . . 4 8 2 2 1 . 1 Artifact . | . . . . . . . . . . . . Weapon 55 | 2 2 1 4 2 7 18 3 3 5 . 8 Energy Gun 2 | . . . . . . . . . . . 2 Energy Cannon 13 | . . . . . 3 3 . 2 2 . 3 Ballistic Gun 25 | 2 2 1 3 1 2 10 3 . . . 1 Ballistic Cannon . | . . . . . . . . . . . . Launcher 13 | . . . 1 1 2 5 . . 2 . 2 Special Weapon . | . . . . . . . . . . . . Impact Weapon 1 | . . . . . . . . . 1 . . Slashing Weapon 1 | . . . . . . . . 1 . . . Piercing Weapon . | . . . . . . . . . . . . Special Melee Weapon . | . . . . . . . . . . . . Unidentified Prototypes 8 | . . . . . 1 2 . . . . 5 Corrupted Parts 2 | . . . . . . 2 . . . . . System Corruption 6 | . . . . . . 6 . . . . . Parts Lost 63 | . . . 7 . 9 22 9 1 . . 15 Power 13 | . . . 2 . 1 5 2 1 . . 2 Propulsion 26 | . . . 3 . 5 7 2 . . . 9 Utility 13 | . . . . . 1 7 3 . . . 2 Weapon 11 | . . . 2 . 2 3 2 . . . 2 Highest Loss Streak 10 | . . . 7 . 4 10 6 1 . . 9 To Critical Strikes 6 | . . . 5 . . 1 . . . . . Average Slot Usage (%) 96 | . 97 100 99 100 99 92 98 99 100 100 92 Engine 10 | . 4 12 13 14 15 6 11 14 11 11 7 Core 3 | . 9 1 . . 2 5 4 1 5 5 4 Treads 23 | . 28 28 28 14 24 23 7 24 29 29 27 Wheel 4 | . . . . 14 10 2 17 3 . . . Device 6 | . . . . . 3 10 9 11 11 11 9 Storage 7 | . . 9 14 14 9 7 6 5 5 5 4 Processor 12 | . 25 15 14 14 8 7 19 11 11 11 12 Protection 4 | . . 3 . . 5 9 2 4 5 5 4 Energy Gun 1 | . . . . . . . . . . . 7 Energy Cannon 3 | . . . . . 7 2 . 5 10 11 5 Ballistic Gun 12 | . 28 28 25 27 10 11 12 5 . . . Naked Turns 8 | . . . . . . . . . . . 8 Heaviest Build 164 | 8 11 93 94 90 107 115 120 144 144 144 164 Greatest Support 150 | 40 40 40 40 16 82 82 52 150 150 150 150 Greatest Overweight (x) 31 | . . 2 2 5 6 31 7 7 . . 26 Average Overweight (x) 1 | . . 1 2 5 3 1 2 1 . . . Largest Inventory Capacity 25 | 5 5 25 25 25 25 25 25 25 25 25 25 Average Capacity 23 | 5 5 17 25 25 25 25 25 25 25 25 24 Most Carried 25 | 5 5 21 25 21 25 25 25 25 25 25 25 Average Carried 21 | 3 4 10 21 19 23 23 22 24 25 24 24 Final Capacity 25 | 5 5 25 25 25 25 25 25 25 25 25 5 Final Carried 25 | 5 5 21 19 21 25 20 24 25 25 25 2 Class Distribution -------------------- 47% | Mutant 46% | Scavenger-Mutant 6% | Gunner Dominant Class ---------------- Mutant | -10/Materials Mutant | -10/Mines Mutant | -10/Exiles Mutant | -9/Mines Scavenger-Mutant | -8/Materials Scavenger-Mutant | -7/Factory Scavenger-Mutant | -6/Factory Mutant | -5/Factory Mutant | -5/Upper Caves Mutant | -5/Upper Caves Gunner | -5/Warlord Resources | -11 -10 -10 -10 -9 -8 -7 -6 -5 -5 -5 -5 ----------- Run | Jun Mat Min Exi Min Mat Fac Fac Fac Upp Upp War Matter Collected 4188 | 202 157 283 260 236 838 931 666 307 123 39 146 Remotely . | . . . . . . . . . . . . Salvage Created 5735 | . 157 23 111 111 1044 1423 906 791 278 145 746 Parts 264 | . 8 1 1 8 55 65 53 41 12 2 18 Haulers Intercepted 3 | . . . . . . 2 1 . . . . Recyclers Shooed 4 | . 1 . . . . 1 2 . . . . Parts Field Recycled . | . . . . . . . . . . . . Retrieved Matter . | . . . . . . . . . . . . Parts Self-Destructed 11 | . . . . . . . . . 9 2 . Prevented . | . . . . . . . . . . . . Kills | -11 -10 -10 -10 -9 -8 -7 -6 -5 -5 -5 -5 ------- Run | Jun Mat Min Exi Min Mat Fac Fac Fac Upp Upp War Combat Hostiles Destroyed 120 | . 3 . 6 3 19 24 17 9 8 3 28 Melee 1 | . . . . . . . . 1 . . . Guns 46 | . 3 . 2 1 10 9 17 4 . . . Cannons 20 | . . . . . 6 4 . 4 2 2 2 AOE 51 | . . . 4 2 3 10 . . 6 . 26 Classes Destroyed 21 | . 1 1 2 . 5 5 3 . . . 4 Worker 10 | . . . . . 3 5 2 . . . . Builder 5 | . . 1 . . 2 2 . . . . . Tunneler 2 | . . . . . . . 1 1 . . . Hauler 3 | . . . . . . 2 1 . . . . Recycler 6 | . . . . . . 4 . 2 . . . Mechanic 1 | . . . . . . . . . . . 1 Watcher 2 | . . . . . . . 1 1 . . . Swarmer 17 | . . . . . . . 8 3 4 2 . Grunt 51 | . 3 . . 3 11 13 5 2 3 . 11 Brawler 5 | . . . . . 1 . . . 1 . 3 Duelist 5 | . . . . . 1 . 1 1 . . 2 Protector 2 | . . . . . . . . . . . 2 Sentry 11 | . . . . . 5 3 1 1 . 1 . Specialist 2 | . . . . . . 2 . . . . . Hunter 6 | . . . . . 1 3 . . . . 2 Programmer 11 | . . . . . . 2 2 2 . . 5 Heavy 1 | . . . . . . 1 . . . . . Striker 1 | . . . . . . . . . . . 1 Executioner 2 | . . . . . . . . . . . 2 Zionite 1 | . . . 1 . . . . . . . . Decomposer 1 | . . . . . . . . . 1 . . Assembled 7 | . . . 7 . . . . . . . . Best Kill Streak 20 | . 2 1 6 3 6 5 6 5 4 3 20 Combat Bots Only 19 | . 2 . 5 3 4 3 6 5 4 3 19 Max Kills in Single Turn 7 | . 1 1 5 2 2 2 1 2 3 1 7 Gunslinging 1 | . . . . . . . . 1 . . . Exploded 7 | . . . 4 2 2 2 . . 3 . 7 Melee 1 | . . . . . . . . 1 . . . Uniques/NPCs Destroyed 1 | . . . 1 . . . . . . . . 8R-AWN (-10/Exiles) Combat | -11 -10 -10 -10 -9 -8 -7 -6 -5 -5 -5 -5 -------- Run | Jun Mat Min Exi Min Mat Fac Fac Fac Upp Upp War Damage Taken 12300 | . 53 . 998 11 1658 3186 1409 467 215 692 3611 Core 2040 | . 10 . 158 11 182 400 268 17 16 86 892 Absorbed by Shields 331 | . . . . . . 331 . . . . . Regen/Repaired (Parts) 401 | . . . . . . . . . . . 401 Core Remaining (%) 60 | 100 . . . 28 66 42 68 . . . . Volleys Fired 361 | . 14 2 39 3 83 98 58 20 16 9 19 Largest 3 | . 2 2 2 2 2 2 2 2 2 2 3 Hottest 180 | . 46 46 56 46 85 123 58 180 180 180 180 Shots Fired 667 | . 28 4 76 5 160 173 111 39 26 19 26 Gun 460 | . 28 4 74 4 98 111 111 18 . . 12 Cannon 174 | . . . . . 59 49 . 21 20 19 6 Launcher 33 | . . . 2 1 3 13 . . 6 . 8 Special . | . . . . . . . . . . . . Kinetic 448 | . 28 4 74 4 98 111 111 18 . . . Thermal 157 | . . . . . 59 34 . 21 20 19 4 Explosive 25 | . . . 2 1 3 13 . . 6 . . Electromagnetic 17 | . . . . . . 15 . . . . 2 Entropic 20 | . . . . . . . . . . . 20 Robot Hit Streak 29 | . 6 5 19 9 11 29 17 13 8 9 18 Robot Miss Streak 4 | . 2 1 1 1 3 3 2 1 1 4 2 Penetration Max . | . . . . . . . . . . . . Secondary Targets 3 | . . . . . . . 2 1 . . . Max Gunslinging Chain 1 | . . . . . . . 1 1 . . . Shots Hit Robots 491 | . 18 3 66 4 115 132 82 33 8 10 20 Core Hits 272 | . 6 1 25 5 50 63 46 20 15 2 39 Critical Kills 1 | . . . . . . . 1 . . . . Critical Parts Destroyed 4 | . . . . . . 1 1 . . . 2 Critical Strikes 6 | . . . 1 . . 1 2 . . . 2 Destroy 4 | . . . 1 . . 1 2 . . . . Detonate 2 | . . . . . . . . . . . 2 Melee Attacks 7 | . . . . . . . . 6 1 . . Impact 1 | . . . . . . . . . 1 . . Slashing 6 | . . . . . . . . 6 . . . Piercing . | . . . . . . . . . . . . Sneak Attacks 2 | . . . . . . . . 1 1 . . Combat Hostiles . | . . . . . . . . . . . . Follow-up Attacks . | . . . . . . . . . . . . Damage Inflicted 18849 | . 275 46 1458 181 2472 3822 1637 1051 775 342 6790 Guns 6518 | . 275 43 1095 62 1118 1595 1599 338 . . 393 Cannons 2995 | . . . . . 970 887 . 560 137 342 99 Explosions 8921 | . . . 363 119 384 1246 . . 515 . 6294 Melee 276 | . . . . . . . . 153 123 . . Ramming 139 | . . 3 . . . 94 38 . . . 4 Kinetic 6125 | . 275 43 1095 62 1118 1595 1599 338 . . . Thermal 2994 | . . . . . 970 649 . 560 137 342 336 Explosive 2627 | . . . 363 119 384 1246 . . 515 . . Electromagnetic 302 | . . . . . . 238 . . . . 64 Impact 123 | . . . . . . . . . 123 . . Slashing 153 | . . . . . . . . 153 . . . Piercing . | . . . . . . . . . . . . Entropic 6386 | . . . . . . . . . . . 6386 Highest Corruption 7 | . . . . . 5 7 2 1 1 1 7 Average Corruption 3 | . . . . . 5 5 1 1 1 1 3 Corruption Purged . | . . . . . . . . . . . . Corruption Blocked 2 | . . . . . . . . . . . 2 Effects 85 | . . . . . 23 29 12 4 5 4 8 Message Errors 13 | . . . . . 4 3 3 . 1 1 1 Matter Fused 20 | . . . . . 6 8 1 1 1 1 2 Heat Flow Errors 18 | . . . . . 3 8 1 2 . 1 3 Energy Discharges 9 | . . . . . 4 3 2 . . . . Parts Rejected 3 | . . . . . . 2 . . 1 . . Data Loss (minor) 9 | . . . . . 2 1 4 . 1 . 1 Data Loss (major) 4 | . . . . . 2 . 1 . 1 . . Misfires 3 | . . . . . 2 . . . . 1 . Alerts 1 | . . . . . . . . 1 . . . Weapon Failures 5 | . . . . . . 4 . . . . 1 Overload Shots . | . . . . . . . . . . . . Overflow Damage 483 | . . . . . . 22 . 12 119 . 330 Projectiles 12 | . . . . . . . . 12 . . . Explosions 352 | . . . . . . 22 . . . . 330 Melee 119 | . . . . . . . . . 119 . . Knockbacks . | . . . . . . . . . . . . Impact . | . . . . . . . . . . . . Kinetic . | . . . . . . . . . . . . Secondary . | . . . . . . . . . . . . Self-Inflicted Damage 456 | . . . . . 29 60 19 . 32 . 316 Shots 9 | . . . . . 3 2 . . 1 . 3 Rammed 13 | . . 1 . . . 6 4 . . . 2 Targets Rammed 16 | . . 1 . . . 9 4 . . . 2 Kicked . | . . . . . . . . . . . . Crushed 3 | . . . . . . 3 . . . . . Highest Temperature 403 | . 30 14 64 17 403 264 299 393 159 242 167 Average Temperature 95 | . 10 8 23 8 135 73 91 133 42 89 50 Received Heat Transfer 1938 | . 30 . . 6 657 416 345 72 63 54 295 Effects 12 | . . . . . 8 . 3 1 . . . Shutdowns 3 | . . . . . 2 . . 1 . . . Energy Bleed 4 | . . . . . 4 . . . . . . Interference 5 | . . . . . 2 . 3 . . . . Siege Activations . | . . . . . . . . . . . . Robots Corrupted 1 | . . . . . . 1 . . . . . Combat Hostiles 1 | . . . . . . 1 . . . . . Parts Fried 1 | . . . . . . 1 . . . . . Impact Corruptions 4 | . . . . . . . . . 4 . . Robots Melted 1 | . . . . . . . . . . 1 . Combat Hostiles 1 | . . . . . . . . . . 1 . Parts Melted 5 | . . . . . 1 3 . . 1 . . Heat Transferred 3900 | . . . . . 1554 999 . 592 148 370 237 Parts Sabotaged . | . . . . . . . . . . . . Parts Stolen . | . . . . . . . . . . . . Parts Stripped . | . . . . . . . . . . . . Power Chain Reactions . | . . . . . . . . . . . . Missiles Intercepted . | . . . . . . . . . . . . Alert | -11 -10 -10 -10 -9 -8 -7 -6 -5 -5 -5 -5 ------- Run | Jun Mat Min Exi Min Mat Fac Fac Fac Upp Upp War Peak Influence 385 | . 115 44 . 74 366 305 385 299 . . . Initial 155 | . . 44 . . 28 155 147 142 . . . Average 130 | . 50 17 . 46 207 120 203 171 . . . Maximum Alert Level 1 | . . . . . 1 1 1 1 . . . Low Security (%) 72 | 100 100 100 . 100 45 75 49 69 . . . Level 1 27 | . . . . . 54 24 50 30 . . . Level 2 . | . . . . . . . . . . . . Level 3 . | . . . . . . . . . . . . Level 4 . | . . . . . . . . . . . . Level 5 . | . . . . . . . . . . . . High Security . | . . . . . . . . . . . . Max Security . | . . . . . . . . . . . . Squads Dispatched 23 | . 1 . . . 4 13 4 1 . . . Investigation 5 | . . . . . 1 2 2 . . . . Extermination 5 | . . . . . . 2 2 1 . . . Reinforcement 9 | . 1 . . . 3 5 . . . . . Assault 1 | . . . . . . 1 . . . . . Garrison 3 | . . . . . . 3 . . . . . Intercept . | . . . . . . . . . . . . Searches Triggered . | . . . . . . . . . . . . Construction Impeded 1 | . . . . . . 1 . . . . . Haulers Reinforced . | . . . . . . . . . . . . Active Scanning Responses . | . . . . . . . . . . . . Cargo Convoy Interrupts . | . . . . . . . . . . . . Stealth | -11 -10 -10 -10 -9 -8 -7 -6 -5 -5 -5 -5 --------- Run | Jun Mat Min Exi Min Mat Fac Fac Fac Upp Upp War Distress Signals 2 | . 2 . . . . . . . . . . Communications Jammed 20 | . . . . . . . 4 16 . . . Distress Signals 17 | . . . . . . . 1 16 . . . Times Spotted 186 | . 10 2 7 3 27 31 25 14 7 3 57 Peak Tracking Total 20 | . 6 1 8 3 4 3 4 4 4 3 20 Tactical Retreats 11 | . 1 . . . 1 2 5 1 . . 1 Traps | -11 -10 -10 -10 -9 -8 -7 -6 -5 -5 -5 -5 ------- Run | Jun Mat Min Exi Min Mat Fac Fac Fac Upp Upp War Traps Triggered 5 | . . . . . 1 1 2 1 . . . Indirectly . | . . . . . . . . . . . . Trap Hack Attempts . | . . . . . . . . . . . . Triggered . | . . . . . . . . . . . . Disarmed . | . . . . . . . . . . . . Reprogrammed . | . . . . . . . . . . . . Reused . | . . . . . . . . . . . . Traps Extracted . | . . . . . . . . . . . . Installed . | . . . . . . . . . . . . Triggered 29 | . . . . . . . . . . . 29 Machines | -11 -10 -10 -10 -9 -8 -7 -6 -5 -5 -5 -5 ---------- Run | Jun Mat Min Exi Min Mat Fac Fac Fac Upp Upp War Machines Disabled 11 | . . . 3 . 3 1 . 1 . . 3 Max in Single Turn 2 | . . . 1 . 1 1 . 1 . . 2 Garrison Access 1 | . . . . . . 1 . . . . . Machines Repaired . | . . . . . . . . . . . . Machines Sabotaged . | . . . . . . . . . . . . Overloaded Fab Kills . | . . . . . . . . . . . . Hacking | -11 -10 -10 -10 -9 -8 -7 -6 -5 -5 -5 -5 --------- Run | Jun Mat Min Exi Min Mat Fac Fac Fac Upp Upp War Machines Accessed 23 | . 2 . 1 . 2 5 5 2 . . 6 Terminals 10 | . 1 . . . 2 2 3 2 . . . Fabricators 3 | . . . . . . 1 2 . . . . Repair Stations . | . . . . . . . . . . . . Recycling Units 1 | . 1 . . . . . . . . . . Scanalyzers . | . . . . . . . . . . . . Garrison Access 2 | . . . . . . 2 . . . . . Total Hacks 48 | . 3 . 1 . 5 10 10 4 . . 15 Successful 25 | . . . 1 . 1 4 2 2 . . 15 Failed 23 | . 3 . . . 4 6 8 2 . . . Catastrophic 9 | . 1 . . . 2 2 4 . . . . Database Lockouts . | . . . . . . . . . . . . Manual 6 | . 3 . 1 . 1 . . 1 . . . Terminals 21 | . 1 . . . 5 3 8 4 . . . Fabricators 6 | . . . . . . 4 2 . . . . Repair Stations . | . . . . . . . . . . . . Recycling Units 2 | . 2 . . . . . . . . . . Scanalyzers . | . . . . . . . . . . . . Garrison Access 3 | . . . . . . 3 . . . . . Terminal Hacks 24 | . . . 1 . 1 3 2 2 . . 15 Record 4 | . . . . . . . . . . . 4 Prototype ID Bank 11 | . . . . . . . 1 . . . 10 Open Door 1 | . . . . . . . . . . . 1 Level Access Points 1 | . . . . . . . 1 . . . . Unreport Threat 2 | . . . . . . 2 . . . . . Locate Traps 2 | . . . . . 1 1 . . . . . Hauler Manifests 1 | . . . . . . . . 1 . . . Zone Layout 1 | . . . . . . . . 1 . . . Derelict Proto ID Bank 1 | . . . 1 . . . . . . . . Fabricator Hacks 1 | . . . . . . 1 . . . . . Network Status 1 | . . . . . . 1 . . . . . Repair Station Hacks . | . . . . . . . . . . . . Recycling Unit Hacks . | . . . . . . . . . . . . Scanalyzer . | . . . . . . . . . . . . Garrison Access Hacks . | . . . . . . . . . . . . Unauthorized Hacks . | . . . . . . . . . . . . Terminals . | . . . . . . . . . . . . Fabricators . | . . . . . . . . . . . . Repair Stations . | . . . . . . . . . . . . Recycling Units . | . . . . . . . . . . . . Scanalyzers . | . . . . . . . . . . . . Garrison Access . | . . . . . . . . . . . . Data Cores Recovered . | . . . . . . . . . . . . Used . | . . . . . . . . . . . . Hacking Detections 13 | . 2 . . . 2 4 4 1 . . . Full Trace Events 4 | . . . . . 1 1 2 . . . . Feedback Events . | . . . . . . . . . . . . Feedback Blocked . | . . . . . . . . . . . . Robot Schematics Acquired . | . . . . . . . . . . . . Robots Built . | . . . . . . . . . . . . Authchips . | . . . . . . . . . . . . Time . | . . . . . . . . . . . . Total Robot Build Rating . | . . . . . . . . . . . . Part Schematics Acquired . | . . . . . . . . . . . . Parts Built . | . . . . . . . . . . . . Authchips . | . . . . . . . . . . . . Time . | . . . . . . . . . . . . Total Part Build Rating . | . . . . . . . . . . . . Parts Repaired . | . . . . . . . . . . . . Time . | . . . . . . . . . . . . Parts Recycled . | . . . . . . . . . . . . Recycled Matter . | . . . . . . . . . . . . Retrieved Matter . | . . . . . . . . . . . . Retrieved Components . | . . . . . . . . . . . . Parts Scanalyzed . | . . . . . . . . . . . . Part Schematics Acquired . | . . . . . . . . . . . . Parts Damaged . | . . . . . . . . . . . . Bothacking | -11 -10 -10 -10 -9 -8 -7 -6 -5 -5 -5 -5 ------------ Run | Jun Mat Min Exi Min Mat Fac Fac Fac Upp Upp War Used RIF Installer . | . . . . . . . . . . . . Robots Hacked . | . . . . . . . . . . . . Non-combat . | . . . . . . . . . . . . Combat . | . . . . . . . . . . . . Robot Hacks Applied . | . . . . . . . . . . . . Relay Couplers Released 1 | . . . . . . 1 . . . . . Machine Destruction 1 | . . . . . . 1 . . . . . Fabnet Peak Effective % . | . . . . . . . . . . . . Robots Rewired . | . . . . . . . . . . . . Allies Hacked . | . . . . . . . . . . . . Hacks Repelled . | . . . . . . . . . . . . Allies | -11 -10 -10 -10 -9 -8 -7 -6 -5 -5 -5 -5 -------- Run | Jun Mat Min Exi Min Mat Fac Fac Fac Upp Upp War Total Allies . | . . . . . . . . . . . . Largest Group . | . . . . . . . . . . . . Highest-Rated Group . | . . . . . . . . . . . . Highest-Rated Ally . | . . . . . . . . . . . . Total Orders . | . . . . . . . . . . . . Ally Attacks 49 | . . . . . . . . . . . 49 Total Damage 3093 | . . . . . . . . . . . 3093 Kills 12 | . . . . . . . . . . . 12 Allies Corrupted 1 | . . . . . . . . . . . 1 Allies Melted . | . . . . . . . . . . . . Intel | -11 -10 -10 -10 -9 -8 -7 -6 -5 -5 -5 -5 ------- Run | Jun Mat Min Exi Min Mat Fac Fac Fac Upp Upp War Robot Analysis Total . | . . . . . . . . . . . . Derelict Logs Recovered 3 | . . . . . . . . . 2 1 . Drone Launches 25 | . . . . . . . . . . . 25 Drone Recoveries . | . . . . . . . . . . . . Exploration | -11 -10 -10 -10 -9 -8 -7 -6 -5 -5 -5 -5 ------------- Run | Jun Mat Min Exi Min Mat Fac Fac Fac Upp Upp War Turns Passed 10041 | 78 381 1111 918 154 1077 2136 1098 895 526 347 1320 Spaces Moved 4500 | 44 199 391 249 81 409 793 641 494 295 199 705 Core 17 | 4 . . . . . 1 . . . . 12 Treads 3075 | 40 199 391 249 . 89 618 . 302 295 199 693 Legs . | . . . . . . . . . . . . Wheels 1408 | . . . . 81 320 174 641 192 . . . Hover . | . . . . . . . . . . . . Flight . | . . . . . . . . . . . . Fastest Speed 50 | 50 160 160 320 175 130 105 105 150 160 160 50 Average Speed 186 | 150 160 249 320 175 179 217 132 156 160 160 175 Slowest Speed 1600 | 160 160 320 320 175 236 1600 205 240 160 160 1350 Overloaded Moves . | . . . . . . . . . . . . Propulsion Burnouts . | . . . . . . . . . . . . Robots Hopped . | . . . . . . . . . . . . Cave-ins Triggered . | . . . . . . . . . . . . Exploration Rate (%) 38 | 4 42 50 42 25 39 23 22 18 59 45 91 Regions Visited 11 Branch Regions 6 Pre-discovered Areas . | . . . . . . . . . . . . Known Exits Taken 1 | . . . . . . . 1 . . . . Unknown Exits Taken 10 | 1 1 1 1 1 1 1 . 1 1 1 . Scrap Searched 7 | . . 3 . 1 . . . . 2 1 . Spaces Dug 17 | . . . . . . 6 . 3 8 . . Terrain Destroyed 279 | . . . 6 4 26 47 1 7 72 8 108 Melee 2 | . . . . . . . . 2 . . . Projectile 40 | . . . . . 6 . 1 5 16 8 4 AOE 237 | . . . 6 4 20 47 . . 56 . 104 Terrain Rammed . | . . . . . . . . . . . . Walls Destroyed . | . . . . . . . . . . . . Machines Disabled . | . . . . . . . . . . . . Actions | -11 -10 -10 -10 -9 -8 -7 -6 -5 -5 -5 -5 --------- Run | Jun Mat Min Exi Min Mat Fac Fac Fac Upp Upp War Total 5537 | 54 242 525 305 88 622 1041 790 572 321 211 766 Wait 294 | . 12 101 . . 56 72 38 15 . . . Move 4489 | 43 198 390 248 80 408 792 640 493 294 198 705 Hop . | . . . . . . . . . . . . Pick Up 102 | 6 5 19 4 2 25 13 17 7 1 2 1 Fast Attach 62 | 4 3 3 1 . 10 17 6 6 2 . 10 Attach 54 | 1 . . 6 . 11 13 12 3 . . 8 Detach 14 | . . 2 . . 1 3 . 2 . . 6 Swap 54 | . 2 2 2 3 11 14 8 6 5 . 1 Drop 84 | . 8 5 5 . 17 10 7 14 2 2 14 Fire 361 | . 14 2 39 3 83 98 58 20 16 9 19 Melee 7 | . . . . . . . . 6 1 . . Ram 6 | . . . . . . . 4 . . . 2 Kick . | . . . . . . . . . . . . Crush 10 | . . 1 . . . 9 . . . . . Escape Stasis . | . . . . . . . . . . . . Rewire . | . . . . . . . . . . . . Trap . | . . . . . . . . . . . . Miscellaneous . | . . . . . . . . . . . . Route ------- -11/Junkyard -10/Materials (discovered 2 exits: [*Mat] / [*Min]) -10/Mines -10/Exiles -9/Mines -8/Materials -7/Factory -6/Factory (discovered 4 exits: *Fac x4) -5/Factory -5/Upper Caves -5/Upper Caves (discovered 2 exits: [*Fac] / *War) -5/Warlord (discovered 1 exit: [*Pro]) History --------- Turn | Location | Event 35 | -11/Junkyard | Discovered new exit (range 16) 79 | -11/Junkyard | Entered Materials 272 | -10/Materials | Discovered new exit (range 15) 303 | -10/Materials | Build established: Mutant 344 | -10/Materials | Discovered new exit (range 3) 460 | -10/Materials | Entered Mines 489 | -10/Mines | A weapon hastily lodged in a ceiling crevice suddenly fell to the ground 534 | -10/Mines | Joined a pair of Derelicts in attacking an 0b10 outpost 613 | -10/Mines | Assembled infested the area 1555 | -10/Mines | Deemed a non-threat by the Exiles lab entrance 1558 | -10/Mines | Discovered new exit (range 5) 1571 | -10/Mines | Entered Exiles 1619 | -10/Exiles | Discovered new exit (range 15) 1658 | -10/Exiles | Met 8R-AWN 1703 | -10/Exiles | Met EX-HEX 1792 | -10/Exiles | Met EX-BIN 1866 | -10/Exiles | Aligned with FarCom system 1869 | -10/Exiles | Given EX-Vault access code 1946 | -10/Exiles | Opened EX-Vault 1962 | -10/Exiles | Found Latent Energy Streamer 1976 | -10/Exiles | Found Superbattery 1982 | -10/Exiles | Found Army-in-a-Box 2053 | -10/Exiles | Warned to stay clear of 0b10 Research branches 2181 | -10/Exiles | Attacked by the Exiles 2277 | -10/Exiles | Core integrity fell below 50% 2295 | -10/Exiles | Destroyed 8R-AWN 2324 | -10/Exiles | Lost 7 parts (2p3n2w) 2489 | -10/Exiles | Stole three prototypes: Superbattery, Army-in-a-Box, Latent Energy Streamer 2489 | -10/Exiles | Entered Mines 2609 | -9/Mines | Discovered new exit (range 8) 2643 | -9/Mines | Entered Materials 2643 | -8/Materials | Evolved 4 slots: Power x1, Propulsion x2, Utility x1 2967 | -8/Materials | Build established: Scavenger-Mutant 3363 | -8/Materials | Lost 4 parts (2n2w) 3517 | -8/Materials | Lost 3 parts (1p2n) 3573 | -8/Materials | Discovered new exit (range 13) 3720 | -8/Materials | Entered Factory 3720 | -7/Factory | Evolved 2 slots: Utility x2 5063 | -7/Factory | Lost 4 parts (2p1n1u) 5565 | -7/Factory | Lost 10 parts (2p3n3u2w) 5618 | -7/Factory | Core integrity fell below 50% 5834 | -7/Factory | Discovered new exit (range 15) 5856 | -7/Factory | Entered another Factory area 5856 | -6/Factory | Evolved 2 slots: Power x1, Utility x1 6471 | -6/Factory | Identified exit to Factory 6776 | -6/Factory | Lost 6 parts (2p1n1u2w) 6954 | -6/Factory | Entered another Factory area 6954 | -5/Factory | Evolved 2 slots: Propulsion x1, Weapon x1 7549 | -5/Factory | Build established: Mutant 7841 | -5/Factory | Discovered new exit (range 5) 7849 | -5/Factory | Entered Upper Caves 7912 | -5/Upper Caves | Learned 8 Factory zone layouts 7941 | -5/Upper Caves | Learned Factory garrison access intel 8358 | -5/Upper Caves | Discovered new exit (range 10) 8375 | -5/Upper Caves | Entered another Upper Caves area 8409 | -5/Upper Caves | Discovered new exit (range 9) 8435 | -5/Upper Caves | Learned location of 2 exits from Factory 8466 | -5/Upper Caves | Encountered a Warlord checkpoint 8658 | -5/Upper Caves | Attracted the attention of an 0b10 checkpoint 8711 | -5/Upper Caves | Discovered new exit (range 8) 8722 | -5/Upper Caves | Entered Warlord 8793 | -5/Warlord | System corruption cleaned by Quarantine Array 8978 | -5/Warlord | Visited the Vortex Lab 8989 | -5/Warlord | Warlord's base attacked by MAIN.C 8994 | -5/Warlord | Found Prototype Launcher 8997 | -5/Warlord | Found Prototype Energy Gun 8997 | -5/Warlord | Identified Vortex Rifle 9000 | -5/Warlord | Found Vortex Rifle 9327 | -5/Warlord | Build established: Gunner 9339 | -5/Warlord | Warlord forces counterattacked 9429 | -5/Warlord | Learned Armory scanalyzer intel 9429 | -5/Warlord | Learned Armory trap positions 9600 | -5/Warlord | Met Warlord 9629 | -5/Warlord | Found Prototype Reactor 9629 | -5/Warlord | Identified Vortex Chain Reactor 9636 | -5/Warlord | Found Prototype Processor 9636 | -5/Warlord | Identified Exp. Targeting Computer 9652 | -5/Warlord | Found Prototype Device 9652 | -5/Warlord | Identified Thermal Barrier 9664 | -5/Warlord | Warlord base infiltrated, sounded retreat 9876 | -5/Warlord | Spotted Striker 9893 | -5/Warlord | Identified Vortex Catalyst Activator 9894 | -5/Warlord | Destroyed Striker 9919 | -5/Warlord | Destroyed 8 combat bots 9925 | -5/Warlord | Lost 6 parts (1p4n1u) 9934 | -5/Warlord | Spotted Executioner 9947 | -5/Warlord | Spotted Executioner 9950 | -5/Warlord | Destroyed Executioner 9952 | -5/Warlord | Core integrity fell below 50% 9952 | -5/Warlord | Destroyed Executioner 9991 | -5/Warlord | Spotted B-86 Titan 9992 | -5/Warlord | Spotted Striker 9993 | -5/Warlord | Spotted B-75 Beast 10002 | -5/Warlord | Spotted Striker 10008 | -5/Warlord | Destroyed 19 combat bots 10018 | -5/Warlord | Spotted Executioner 10023 | -5/Warlord | Allies destroyed B-86 Titan 10023 | -5/Warlord | Allies destroyed Striker 10025 | -5/Warlord | Spotted Executioner 10030 | -5/Warlord | Allies destroyed B-75 Beast 10035 | -5/Warlord | Core integrity fell below 20% 10039 | -5/Warlord | Discovered new exit (range 16) 10042 | -5/Warlord | Destroyed by G-67 Veteran with Field Laser Last Messages --------------- Dropped Army-in-a-Box. >> Lost connection to Army Drone. The unstable cave ceiling collapses. Acquired 5 matter. Penetrated by Slug. Slammed into G-67 Veteran. The unstable cave ceiling collapses. 42 Matter crushed. G-67 Veteran suffers critical hit (Burn). Slammed into G-67 Veteran. Army Drone destroyed. EXIT=FOUND The unstable cave ceiling collapses. 1 Matter crushed. The unstable cave ceiling collapses. G-50 Soldier crushed by falling debris. The unstable cave ceiling collapses. Executioner crushed by falling debris. Executioner system corrupted by crushing effect. Executioner system terminally corrupted. Map ----- +----------------------------------------------------+ | | | | | | | ?????????????????????????????????????? | | ?????????????????????????????????????? | | ?????????????????????????????????????? | | ?????????????????????????????????????? | | ?????????????????????????????????????? | | ?????????????????????????????????????? | | ##???????????????????????????????????? | | "#???????????????????????????????????? | | "#???????????????????????????????????? | | X#???????????????????????????????????? | | "#???????????????????????????????????? | | ##???????????####????????????????????? | | ????????????# # ????????????????###?? | | ????????????# ??????????????# ??? | | ###????????#? ????????????? ### | | #????????# # #??????????? =< < | | #?????????? ?#?????????=%%% < | | #??????????? #"##?????? !!= ?? | | X"#???????????? # ????? =%=! ##?? | | ###?????????????# =%! ???? [[%; ??? | | ????????????????#" /% #### = #; #?? | | ????????????????#""%* ## # *% #??? | | ????????????????# " % # @ # #???? | | ????????????????# ; !% ###?? | | ????????????????###; l# #i*%# ##? | | ??????????????????### b #? | | ????????????##???#####% ; #? | | ??""#???????# #### # gb # ##? | | ?#""#???##### ### ##% g #? #?? | | ?#""# ### % ##! % #?? ##? | | ##""" # ### ##?? #? | | *" ! * %! % # ##? | | !=" [ % % ! ! #??? | | ! = ==*!% ! #= ##??? | | %] % %% !=%! !! | #???? | | =%%=/%* [ #??? | | !=% % !%!! !%] # # #??? | | ]% % = ! = ## #? #??? | | % [] ## #??? | | " %###"# ??? | | "" " ##???# ??? | | ##""##### # # "" #????? ??? | | ?#""#???# # # ######## ^#???? ???? | | ?#""#??? # #?????# ##???? ???? | | ?#""#???########????## ##????? ???? | | ??""????????????????# #?????? #???? | | ????????????????????# #?????? #???? | +----------------------------------------------------+ Best States ------------- Heat Dissipation 78 Energy Generation 69 Energy Capacity 915 Matter Stores 300 Matter Capacity 300 Sight Range 16 Robot Scan Range 15 Terrain Scan Density 10 Jamming Range 12 Armor Coverage 450 Weapon Cycling 15 Phase Shifting 5 Evasion (%) 50 Targeting Accuracy 20 Core Analysis 6 Recoil Reduction 5 Salvage Targeting 2 Item Schematics ----------------- None Robot Schematics ------------------ None Fabricated ------------ Nothing Alien Tech Used ----------------- None Achievements -------------- None Challenges ------------ None Game ------ Seed NovaTrackerBeamcaster Manual? 0 Play Time 01:07:34 Cumulative 346.1 hours Start 2023.10.02 @ 21:05:45 End 2023.11.14 @ 16:17:31 Sessions 3 Manual Loads 0 Difficulty Rogue Special Mode None Game No. 334 Rogue 334 Adventurer 0 Explorer 0 Win Type - Total 25 Types 19/0/4/2/0/0/0/0/0 Lore% 81 Gallery% 88 Achievement% 80 Wizard Run 0 Options --------- ASCII 0 Keyboard 1 Movement Numpad Keybinds 0 Fullscreen 1 Font 18/SmallcapsGlow Map View 76x50 Tactical HUD 1 Map Filters NONE Filters NONE Steam 1 RUN: f44c4f84-9c4d-45b3-af73-3b8e49998219